bitfinex/quotes_ETHUSD_20250721
["timestamp","ask_amount","ask_price","bid_price","bid_amount"]
[1753124199615,3.1402153,3742.1,3742.0,0.1336]
[1753124200155,2.67243913,3741.9,3741.8,0.001]
[1753124200739,3.14033913,3741.9,3741.8,0.001]
[1753124201126,0.20500855,3742.1,3741.8,0.001]
[1753124201327,0.55,3742.2,3741.8,3.86999287]
[1753124201559,0.55,3742.2,3742.1,0.1336]
[1753124202428,1.0179,3742.2,3742.1,0.1336]
[1753124202633,3.69012489,3742.2,3742.1,0.1336]
[1753124202934,1.0179,3742.2,3741.8,0.1346]
[1753124203140,0.03327972,3742.1,3741.8,0.1346]
[1753124203473,0.50117972,3742.1,3741.8,0.1346]
[1753124203771,0.03327972,3742.1,3741.8,0.1346]
[1753124204177,0.03327972,3742.2,3741.8,0.1346]
[1753124204582,1.2631,3742.1,3741.8,0.1346]
[1753124204790,1.2631,3742.1,3741.8,0.001]
[1753124204791,3.22243913,3741.9,3741.8,0.001]
[1753124205087,7.47543913,3741.9,3741.8,0.001]
[1753124205454,7.94333913,3741.9,3741.8,0.001]
[1753124205839,8.75013913,3741.9,3741.8,0.001]
[1753124206046,10.26219581,3741.9,3741.8,0.001]
[1753124206970,13.45687526,3741.9,3741.8,1e-08]
[1753124210898,13.59623151,3741.9,3741.8,1e-08]
[1753124211462,2.67351085,3740.4,3740.3,0.004]
[1753124211646,4.252,3740.4,3740.3,0.004]
[1753124211865,4.28527972,3740.4,3740.3,0.004]
[1753124212993,4.252,3740.4,3740.3,0.004]
[1753124213214,6.95879057,3740.4,3740.3,0.004]
[1753124213517,4.252,3740.4,3740.3,0.004]
[1753124213698,4.7075,3740.4,3740.3,0.004]
[1753124213906,4.28527972,3740.4,3740.3,0.004]
[1753124214421,4.74077972,3740.4,3740.3,0.004]
[1753124214563,8.1557004,3740.4,3740.3,0.004]
[1753124214764,8.12242068,3740.4,3740.3,0.004]
[1753124215064,8.67242068,3740.4,3740.3,0.004]
[1753124216290,9.49492068,3740.4,3740.3,0.004]
[1753124216611,0.55,3740.4,3740.3,0.004]
[1753124216817,7.47551085,3740.4,3740.3,0.004]
[1753124217031,4.802,3740.4,3740.3,0.004]
[1753124217866,7.47551085,3740.4,3740.3,0.004]
[1753124218262,7.93101085,3740.4,3740.3,0.004]
[1753124218462,8.99145106,3740.4,3740.3,0.004]
[1753124218867,9.75715106,3740.4,3740.3,0.004]
[1753124219866,5.50515106,3740.4,3740.3,0.004]
[1753124220068,8.27449057,3740.4,3740.3,0.004]
[1753124220276,3.8143,3740.8,3740.3,0.004]
[1753124220525,0.1336,3740.6,3740.3,0.4626]
[1753124220804,2.67345077,3740.5,3740.4,0.4586]
[1753124221103,2.67343937,3740.5,3740.4,0.59411]
[1753124221309,1.2169,3741.6,3740.4,0.59411]
[1753124221491,0.03327972,3741.5,3740.6,0.8039]
[1753124221677,0.03327972,3741.5,3740.5,4.73633439]
[1753124221678,0.27295625,3741.9,3741.3,0.1336]
[1753124221877,0.27295625,3741.9,3741.4,1.3961]
[1753124221878,0.13935625,3741.9,3741.4,1.3961]
[1753124222083,0.13935625,3741.9,3741.8,0.1336]
[1753124222609,2.81179538,3741.9,3741.8,0.1336]
[1753124222909,2.8450751,3741.9,3741.8,0.1336]
[1753124223271,2.67272484,3741.5,3741.4,0.8039]
[1753124223605,2.67272484,3741.5,3741.4,1.2625]
[1753124223904,2.67272484,3741.5,3741.4,1.3961]
[1753124224067,2.67272484,3741.5,3741.4,1.53571]
[1753124224268,0.13935625,3741.9,3741.4,1.40211]
[1753124224486,0.13935625,3741.9,3741.6,3.48139765]
[1753124224703,0.002,3742.2,3741.6,3.48139765]
[1753124224891,0.002,3742.2,3741.8,2.67250157]
[1753124225092,0.002,3742.2,3741.9,0.64211431]
[1753124225299,0.002,3742.2,3741.9,0.02672439]
[1753124225593,0.002,3742.2,3742.0,0.4586]
[1753124225793,0.002,3742.2,3741.6,0.8088]
[1753124225794,2.67243623,3742.0,3741.6,0.8088]
[1753124226111,2.67243623,3742.0,3741.3,0.4586]
[1753124226112,0.55,3741.6,3741.3,0.4586]
[1753124226491,0.55,3741.4,3741.2,0.8161]
[1753124226831,0.55,3741.3,3740.6,1.2747]
[1753124227031,0.8224,3741.6,3740.7,0.141021]
[1753124227032,0.4555,3741.6,3740.7,0.141021]
[1753124227242,2.6729347,3741.3,3740.7,0.141021]
[1753124227397,2.67301061,3741.1,3740.6,0.8161]
[1753124227597,0.55,3740.9,3740.6,1.2747]
[1753124227842,0.55,3741.3,3740.7,3.13187279]
[1753124228150,0.58327972,3741.3,3740.7,3.13187279]
[1753124228645,4.249,3741.6,3740.9,2.67315351]
[1753124228851,0.55,3741.5,3741.0,3.13167599]
[1753124229146,0.55,3741.5,3741.1,0.4586]
[1753124229347,0.55,3741.5,3741.0,2.67307599]
[1753124229497,0.58327972,3741.5,3741.2,0.4586]
[1753124229693,0.03327972,3741.5,3740.8,0.66481372]
[1753124229926,0.55,3741.1,3740.6,0.8161]
[1753124230145,3.25629117,3741.1,3740.6,2.09561072]
[1753124230699,0.55,3741.0,3740.4,0.0069797]
[1753124230899,0.55,3740.8,3740.4,0.0069797]
[1753124231129,0.55,3740.6,3740.4,0.0069797]
[1753124231343,0.55,3740.5,3740.4,0.0069797]
[1753124231900,3.22343937,3740.5,3740.4,0.0069797]
[1753124234040,0.55,3740.5,3740.4,0.0069797]
[1753124234342,0.55,3740.5,3740.4,0.1405797]
[1753124235335,3.22343937,3740.5,3740.4,0.1405797]
[1753124236515,0.55,3740.5,3740.4,0.1405797]
[1753124236913,0.768,3741.2,3740.4,0.94777756]
[1753124237246,2.67308206,3741.0,3740.4,0.5885797]
[1753124237536,0.03327972,3740.9,3740.7,0.1336]
[1753124237750,0.03327972,3740.9,3740.4,0.4549797]
[1753124237751,2.67295726,3741.2,3740.8,0.448]
[1753124238050,2.67295726,3741.2,3740.8,0.5816]
[1753124238241,4.248,3741.4,3740.9,0.448]
[1753124238406,0.03327972,3741.3,3741.1,0.1336]
[1753124238607,2.7061964,3741.3,3741.1,0.1336]
[1753124238904,0.03327972,3741.3,3741.1,0.1336]
[1753124239111,2.70616325,3741.3,3741.1,0.1336]
[1753124239313,0.03327972,3741.3,3741.1,0.1336]
[1753124239518,2.70558503,3742.1,3741.2,0.47472939]
[1753124239735,0.20142277,3742.2,3741.7,0.1336]
[1753124239924,0.20142277,3742.2,3741.4,2.69950941]
[1753124240121,0.13933873,3742.1,3742.0,0.1336]
[1753124240408,2.81163503,3742.1,3742.0,0.1336]
[1753124240612,0.13933873,3742.1,3742.0,0.1336]
[1753124241761,0.13933873,3742.1,3742.0,0.5816]
[1753124241965,0.68933873,3742.1,3742.0,0.5816]
[1753124242345,3.39491475,3742.1,3742.0,0.1336]
[1753124242941,1.61686945,3742.1,3740.8,0.448]
[1753124243142,2.67264118,3741.7,3740.7,0.8182]
[1753124243325,2.67301061,3741.1,3741.0,0.1336]
[1753124243530,2.67330786,3740.7,3740.3,0.005]
[1753124243768,2.67343937,3740.5,3740.3,0.005]
[1753124244138,2.67343937,3740.5,3740.4,0.1405797]
[1753124244744,2.67343937,3740.5,3740.4,0.1415797]
[1753124244954,3.13703937,3740.5,3740.4,0.1415797]
[1753124245158,2.67343937,3740.5,3740.4,0.1415797]
[1753124245618,3.68703937,3740.5,3740.4,0.0079797]
[1753124245733,4.75100207,3740.5,3740.4,0.0079797]
[1753124246748,3.68703937,3740.5,3740.4,0.0079797]
[1753124247065,7.93303937,3740.5,3740.4,0.0079797]
[1753124247366,3.68703937,3740.5,3740.4,0.0079797]
[1753124247568,7.96631909,3740.5,3740.4,0.0079797]
[1753124247737,3.68703937,3740.5,3740.4,0.0079797]
[1753124247938,3.43766828,3739.9,3739.0,12.98779631]
[1753124248172,0.55,3739.1,3739.0,12.98779631]
[1753124249265,0.75271623,3739.1,3739.0,12.98779631]
[1753124249483,4.39062822,3739.1,3739.0,12.98779631]
[1753124249777,5.47998785,3739.1,3739.0,12.98779631]
[1753124250151,5.51341835,3739.1,3739.0,12.98779631]
[1753124250346,1.54994673,3739.1,3739.0,12.98779631]
[1753124250657,4.99871623,3739.1,3739.0,12.98779631]
[1753124250857,0.82672692,3739.5,3739.0,12.98779631]
[1753124250858,0.03342692,3739.5,3739.0,12.98779631]
[1753124251061,3.03342335,3739.9,3739.0,12.98779631]
[1753124251382,0.7745,3739.6,3739.0,12.98779631]
[1753124251579,1.29907692,3739.5,3739.0,12.98779631]
[1753124251749,4.796,3739.4,3739.0,12.98779631]
[1753124252082,0.55,3739.2,3739.0,12.98779631]
[1753124252380,0.5834305,3739.1,3739.0,12.98779631]
[1753124252682,0.55,3739.1,3739.0,12.98779631]
[1753124253046,4.27942871,3739.3,3739.0,14.38697594]
[1753124253245,0.23537883,3739.5,3739.0,15.34827594]
[1753124253483,4.44795191,3739.5,3739.1,0.448]
[1753124253899,0.20195191,3739.5,3739.2,0.448]
[1753124254198,20.0,3740.0,3739.6,2.67405314]
[1753124254403,20.0,3740.0,3739.7,0.448]
[1753124254693,7.41690347,3739.9,3739.0,13.50109631]
[1753124254846,0.55,3739.5,3739.0,12.98779631]
[1753124255050,0.55,3739.1,3739.0,12.98779631]
[1753124255302,0.5834305,3739.1,3739.0,12.98779631]
[1753124255453,0.20399771,3739.5,3739.0,14.83497594]
[1753124255651,0.17280015,3739.6,3739.0,14.38697594]
[1753124255652,3.17127052,3739.4,3739.0,14.38697594]
[1753124255982,1.0136,3739.3,3739.0,12.98779631]
[1753124256160,0.55,3739.1,3739.0,12.98779631]
[1753124256363,3.22444037,3739.1,3739.0,12.98779631]
[1753124256550,3.68804037,3739.1,3739.0,12.98779631]
[1753124256965,0.55,3739.1,3739.0,12.98779631]
[1753124257164,3.22444037,3739.1,3739.0,12.98779631]
[1753124257385,0.55,3739.1,3739.0,12.98779631]
[1753124257695,4.796,3739.1,3739.0,12.98779631]
[1753124257893,7.47044037,3739.1,3739.0,12.98779631]
[1753124258660,0.55,3739.2,3739.0,12.98779631]
[1753124258859,0.0334305,3739.1,3739.0,12.98779631]
[1753124260784,4.8294305,3739.1,3739.0,12.98779631]
[1753124261009,7.96747087,3739.1,3739.0,12.98779631]
[1753124261314,5.3932,3739.1,3739.0,12.98779631]
[1753124261532,0.93580155,3741.6,3739.1,0.5133]
[1753124261816,0.70291658,3741.4,3740.0,0.5133]
[1753124261998,0.17780547,3741.3,3740.1,5.88641519]
[1753124262320,0.16592961,3741.5,3741.0,0.1336]
[1753124262524,0.4636,3741.4,3741.0,0.1336]
[1753124262812,0.4636,3741.4,3740.0,0.5133]
[1753124262813,0.1336,3741.1,3740.5,0.1336]
[1753124262986,0.57659308,3741.0,3740.5,0.1336]
[1753124264476,0.57659308,3741.0,3740.5,0.11364]
[1753124264683,0.55,3740.8,3740.5,0.11364]
[1753124264897,0.02659308,3740.7,3740.5,0.11364]
[1753124265610,0.57659308,3740.8,3740.5,0.11364]
[1753124265906,0.57659308,3741.0,3740.5,2.78705934]
[1753124266107,0.57659308,3741.0,3740.6,2.67331758]
[1753124266309,1.11967239,3741.0,3740.5,0.31494461]
[1753124266637,0.55,3741.0,3740.7,2.67326888]
[1753124266921,0.02659308,3741.2,3740.8,0.446]
[1753124267091,4.38933653,3741.5,3740.9,0.1336]
[1753124267285,0.02659308,3741.4,3740.9,0.1336]
[1753124267484,0.002,3741.0,3740.9,2.80674518]
[1753124268296,0.002,3741.0,3740.9,3.76604518]
[1753124268706,0.002,3741.0,3740.9,3.32004518]
[1753124269280,0.002,3741.0,3740.9,0.1336]
[1753124269580,0.002,3741.0,3740.9,3.25275351]
[1753124269918,0.002,3741.0,3740.9,3.27948504]
[1753124270309,0.002,3741.0,3740.9,4.29936262]
[1753124270899,0.002,3741.0,3740.9,8.54436262]
[1753124271083,0.002,3741.0,3740.9,8.51763109]
[1753124272206,0.002,3742.2,3741.8,0.5133]
[1753124272519,0.002,3742.2,3741.9,6.91742437]
[1753124272706,0.002,3742.2,3742.0,2.67236771]
[1753124272884,0.002,3742.2,3742.1,2.6722963]
[1753124274319,0.002,3742.2,3741.9,4.245]
[1753124274527,0.002,3742.2,3742.1,2.6722963]
[1753124274732,0.002,3742.2,3742.0,0.02672367]
[1753124274903,0.002,3742.2,3742.0,4.245]
[1753124275099,0.002,3742.2,3742.0,4.21900995]
[1753124275423,0.002,3742.2,3742.1,2.6722963]
[1753124275911,0.002,3742.2,3742.1,3.1182963]
[1753124276989,0.002,3742.2,3742.0,4.21900995]
[1753124276990,0.002,3742.2,3742.0,6.89136956]
[1753124277712,0.002,3742.2,3741.8,0.5133]
[1753124277912,0.55,3742.0,3741.0,0.5133]
[1753124278128,0.55,3741.8,3741.1,6.94370144]
[1753124278317,0.02659308,3741.7,3740.6,0.5133]
[1753124278516,0.55,3741.5,3740.7,4.244]
[1753124278722,0.02659308,3741.4,3740.9,2.67314674]
[1753124279032,0.57659308,3741.5,3740.8,2.67320172]
[1753124279391,3.24934132,3741.5,3740.7,4.244]
[1753124279592,3.24934132,3741.5,3740.8,2.67321268]
[1753124279803,0.57659308,3741.5,3740.8,2.67321268]
[1753124280028,3.24933647,3741.5,3740.9,4.244]
[1753124280207,3.24936927,3741.5,3740.9,4.244]
[1753124280402,0.57659308,3741.5,3740.9,2.67314789]
[1753124280605,0.57659308,3741.5,3740.9,6.91714789]
[1753124280801,0.57659308,3741.5,3740.9,4.244]
[1753124280991,0.57659308,3741.5,3741.0,2.67308206]
[1753124281597,0.57659308,3741.5,3741.1,2.67300692]
[1753124281911,0.57659308,3741.5,3741.0,2.67307151]
[1753124282115,0.57659308,3741.5,3741.1,0.1336]
[1753124283935,0.7158737,3741.5,3741.1,0.1336]
[1753124284140,0.68928062,3741.5,3741.3,2.67281175]
[1753124284424,0.68928062,3741.5,3741.4,0.1336]
[1753124284931,0.68928062,3741.5,3741.4,2.80639627]
[1753124285233,0.68928062,3741.5,3741.4,3.25239627]
[1753124285434,0.13928062,3741.5,3741.4,3.27912423]
[1753124285725,0.02859308,3742.2,3741.4,2.2011154]
[1753124285932,0.13924428,3742.1,3741.5,2.67272484]
[1753124286236,0.13924428,3742.1,3742.0,2.67236771]
[1753124286538,0.13924428,3742.1,3742.0,2.80596771]
[1753124287021,0.68924428,3742.1,3742.0,2.80596771]
[1753124287538,0.68924428,3742.1,3741.4,4.26753776]
[1753124287539,0.55,3741.1,3740.4,0.1336]
[1753124287833,3.22322897,3740.8,3740.4,0.1336]
[1753124288034,0.55,3740.4,3739.7,0.001]
[1753124288199,0.58341977,3740.3,3739.9,0.1336]
[1753124288707,0.55,3740.7,3740.1,0.1336]
[1753124288901,0.55,3740.4,3740.1,0.1336]
[1753124289096,2.67338757,3740.6,3740.1,0.1336]
[1753124289298,2.67359741,3740.3,3740.1,0.1336]
[1753124290938,2.67365381,3740.2,3740.1,0.1336]
[1753124291122,3.22365381,3740.2,3740.1,0.1336]
[1753124291314,0.55,3740.2,3740.1,0.1336]
[1753124291515,3.22365381,3740.2,3740.1,0.1336]
[1753124291702,3.22393978,3739.8,3739.7,0.001]
[1753124291903,3.22393978,3739.8,3739.5,0.01573879]
[1753124291904,7.01568278,3739.6,3739.5,0.01573879]
[1753124292148,7.01568278,3739.6,3739.0,12.98779631]
[1753124292149,0.55,3739.1,3739.0,12.98779631]
[1753124292504,3.22444037,3739.1,3739.0,12.98779631]
[1753124292704,0.55,3739.1,3739.0,12.98779631]
[1753124292936,3.22444037,3739.1,3739.0,12.98779631]
[1753124294313,0.55,3739.1,3739.0,12.98779631]
[1753124294939,3.7964,3740.0,3739.0,17.50748784]
[1753124295121,0.03342245,3740.0,3739.3,2.67429732]
[1753124295444,2.6737253,3740.1,3739.3,7.00182463]
[1753124295665,2.6737253,3740.1,3739.4,0.01353389]
[1753124295843,2.67374898,3740.1,3739.4,2.68775534]
[1753124296013,2.67374898,3740.1,3739.4,0.51543996]
[1753124296342,2.67380267,3740.0,3739.4,0.51543996]
[1753124296645,0.7964,3740.4,3739.4,0.51543996]
[1753124296847,3.01699274,3742.1,3739.5,0.4747]
[1753124296848,0.85021531,3740.8,3739.5,0.4747]
[1753124297150,0.85021531,3740.8,3739.7,0.752]
[1753124297151,0.0334162,3740.7,3739.7,0.752]
[1753124297328,0.03341352,3741.0,3739.8,4.7847]
[1753124297524,0.03341352,3741.0,3740.0,2.6737474]
[1753124297525,2.67329115,3740.8,3740.0,2.6737474]
[1753124297730,2.67329115,3740.8,3740.1,2.68723588]
[1753124298050,2.70658681,3740.9,3740.2,2.67365329]
[1753124298233,2.70658681,3740.9,3740.3,0.01351852]
[1753124298411,0.55,3740.7,3740.3,0.01351852]
[1753124299620,0.55,3740.7,3740.2,0.01351922]
[1753124299858,0.55,3740.7,3740.2,2.68716574]
[1753124300149,0.55,3740.9,3740.2,0.54962148]
[1753124300352,0.55,3740.7,3740.2,3.22327033]
[1753124300528,0.55,3740.9,3740.3,2.67357857]
[1753124300728,0.55,3740.9,3740.2,0.54962148]
[1753124300729,0.55,3740.7,3740.2,0.54962148]
[1753124301143,0.55,3740.5,3740.2,0.54962148]
[1753124301732,0.55,3740.5,3740.4,0.1336]
[1753124303163,0.8306,3740.4,3739.2,1.2785]
[1753124303339,3.22384031,3740.0,3739.9,0.1336]
[1753124303771,3.67344031,3740.0,3739.9,0.1336]
[1753124304257,0.55,3739.6,3739.3,4.31053069]
[1753124304459,0.55,3739.6,3739.2,0.81733782]
[1753124304656,0.55,3739.8,3739.5,0.1336]
[1753124305176,0.55,3739.6,3739.3,0.1336]
[1753124305375,0.4496,3739.8,3739.3,0.1336]
[1753124305574,0.55,3739.6,3739.3,0.1336]
[1753124306470,0.55,3739.6,3739.1,0.1336]
[1753124306471,0.55,3739.4,3739.1,0.1336]
[1753124306637,0.55,3739.4,3739.0,12.98779631]
[1753124306638,3.22444037,3739.1,3739.0,12.98779631]
[1753124307039,3.67404037,3739.1,3739.0,12.98779631]
[1753124307672,0.1336,3739.2,3739.0,12.98779631]
[1753124307849,2.67444037,3739.1,3739.0,12.98779631]
[1753124308053,0.16702961,3739.2,3739.0,12.98779631]
[1753124308353,0.61662961,3739.2,3739.0,12.98779631]
[1753124308567,2.67444037,3739.1,3739.0,12.98779631]
[1753124308859,3.29102138,3739.2,3739.0,12.98779631]
[1753124309066,2.67444037,3739.1,3739.0,12.98779631]
[1753124309577,3.12404037,3739.1,3739.0,12.98779631]
[1753124310689,1.47523694,3739.1,3739.0,12.98879631]
[1753124310866,0.7978,3740.9,3739.1,0.7956]
[1753124311042,0.7978,3740.9,3739.6,2.67403392]
[1753124311043,2.67332896,3740.7,3739.6,2.67403392]
[1753124311381,2.69333829,3740.5,3739.7,6.99074962]
[1753124311552,2.69333829,3740.5,3739.8,2.67389413]
[1753124311755,0.13929486,3740.6,3739.9,0.50143868]
[1753124311970,0.13929486,3740.6,3740.5,2.67343937]
[1753124312674,0.13929486,3740.6,3740.0,5.1164]
[1753124312876,0.55,3740.5,3740.0,0.8284]
[1753124313076,2.67370962,3740.2,3739.4,2.67417137]
[1753124313279,0.55,3739.9,3739.3,4.286]
[1753124313459,0.01988786,3739.8,3739.3,4.286]
[1753124313665,0.01988786,3739.8,3739.3,8.76576754]
[1753124313983,0.01988786,3739.9,3739.3,8.76576754]
[1753124314744,0.01988786,3739.9,3739.3,8.76576404]
[1753124316367,0.13931575,3739.8,3739.3,8.76576404]
[1753124316568,0.13931575,3739.8,3739.3,6.09148963]
[1753124316969,0.13931575,3739.8,3739.4,2.67417865]
[1753124317176,0.13931575,3739.8,3739.5,4.278]
[1753124319454,0.13931575,3739.8,3739.5,6.95215392]
[1753124319884,0.55,3739.7,3739.5,4.278]
[1753124320281,0.55,3739.7,3739.5,4.273]
[1753124320452,0.55,3739.7,3739.2,2.67431646]
[1753124320656,0.55,3739.7,3739.3,6.97203661]
[1753124320895,0.79668786,3739.6,3739.0,12.98879631]
[1753124321094,0.55,3739.1,3739.0,12.98879631]
[1753124321389,0.9996,3739.1,3739.0,12.98879631]
[1753124321589,0.55,3739.1,3739.0,12.98879631]
[1753124322275,0.56988786,3739.1,3739.0,12.98879631]
[1753124323174,0.55,3739.1,3739.0,12.98879631]
[1753124323371,3.22444037,3739.1,3739.0,12.98879631]
[1753124323597,0.55,3739.1,3739.0,12.98879631]
[1753124323783,3.22444037,3739.1,3739.0,12.98879631]
[1753124324097,3.67404037,3739.1,3739.0,12.98879631]
[1753124324597,0.7768,3739.6,3739.0,12.98879631]
[1753124324598,2.81326829,3739.8,3739.0,17.72849631]
[1753124324763,0.56988786,3739.7,3739.0,17.72849631]
[1753124324967,0.56988786,3739.7,3739.1,2.67438443]
[1753124325169,0.56988786,3739.7,3739.2,4.266]
[1753124325487,0.56988786,3739.7,3739.2,6.94035866]
[1753124325694,0.56988786,3739.7,3739.2,4.266]
[1753124326089,0.56988786,3739.7,3739.3,2.6742505]
[1753124326294,0.56988786,3739.7,3739.2,6.93734689]
[1753124326505,0.55,3739.3,3739.2,6.93734689]
[1753124326707,0.55,3739.3,3739.2,7.6353469]
[1753124326869,0.55,3739.7,3739.2,7.6353469]
[1753124327073,0.55,3739.7,3739.4,2.67418194]
[1753124327271,0.55,3739.7,3739.3,4.262]
[1753124327467,0.13931575,3739.8,3739.7,2.67401128]
[1753124327881,0.01988786,3741.0,3739.7,5.58934011]
[1753124328088,0.002,3741.1,3739.9,2.67386828]
[1753124328402,0.13930611,3740.8,3740.7,2.67329644]
[1753124328603,0.13930611,3740.8,3740.7,7.4320294]
[1753124328810,0.13930611,3740.8,3740.7,7.40529644]
[1753124329112,0.13930611,3740.8,3740.7,4.26]
[1753124329281,0.13930611,3740.8,3740.7,6.93329644]
[1753124329487,0.13930611,3740.8,3740.7,2.67329644]
[1753124329682,0.13930611,3740.8,3740.7,6.93329644]
[1753124330273,0.55,3740.7,3740.0,0.8233]
[1753124330612,0.56988786,3740.6,3740.1,4.258]
[1753124330781,0.56988786,3740.6,3740.1,4.257]
[1753124330984,1.01238786,3740.6,3740.1,4.257]
[1753124331391,3.68578176,3740.6,3740.1,4.257]
[1753124332174,0.55,3740.4,3740.1,4.257]
[1753124332405,0.56988786,3740.4,3740.1,4.257]
[1753124333976,0.40808006,3740.4,3739.5,2.67409986]
[1753124334308,0.8122,3740.2,3739.6,4.253]
[1753124334611,0.01988786,3740.1,3739.6,4.3866]
[1753124334789,2.69362164,3740.1,3739.6,4.3866]
[1753124335206,2.69362164,3740.1,3739.7,4.251]
[1753124335996,0.56988786,3740.1,3739.7,4.251]
[1753124336483,0.55,3739.7,3739.6,0.1336]
[1753124336706,0.55,3739.4,3739.0,12.98879631]
[1753124336917,0.01988786,3739.3,3739.1,4.3846]
[1753124337116,2.67515582,3738.1,3736.3,0.8279]
[1753124337320,8.82709757,3738.1,3736.9,0.14934974]
[1753124337515,8.82709757,3738.1,3736.9,0.1336]
[1753124337516,0.6836,3738.0,3736.9,0.1336]
[1753124337718,0.55,3737.4,3736.9,0.1336]
[1753124337882,4.839,3737.4,3736.9,0.1336]
[1753124338083,7.51467932,3737.4,3736.9,0.1336]
[1753124338308,0.55,3737.2,3736.9,0.1336]
[1753124338834,4.85688786,3737.3,3736.9,0.1336]
[1753124339131,2.67580006,3737.2,3736.9,0.1336]
[1753124339295,4.286,3737.1,3736.9,0.1336]
[1753124339505,0.55,3737.0,3736.9,0.1336]
[1753124339833,0.74934426,3737.0,3736.9,1.08557506]
[1753124340542,0.74934426,3737.0,3736.9,3.76158993]
[1753124340693,0.74934426,3737.0,3736.9,0.61457506]
[1753124340896,1.19184426,3737.0,3736.7,2.0]
[1753124341125,0.74934426,3737.0,3736.9,0.1336]
[1753124341429,0.74934426,3737.0,3736.7,1.5836]
[1753124341631,0.74934426,3737.0,3736.8,0.49776086]
[1753124341803,3.42531428,3737.0,3736.7,1.5836]
[1753124342206,0.74934426,3737.0,3736.7,1.5836]
[1753124342527,3.22608649,3736.8,3736.7,1.5836]
[1753124342830,4.03758649,3736.8,3736.7,1.5836]
[1753124343204,4.03758649,3736.8,3736.7,1.4986]
[1753124343406,5.35702707,3736.8,3736.7,1.4986]
[1753124343905,8.35702707,3736.8,3736.7,1.4986]
[1753124345830,12.66602707,3736.8,3736.7,1.4986]
[1753124346802,12.66802707,3736.8,3736.7,1.4986]
[1753124347426,0.8216,3735.6,3733.8,0.029]
[1753124347703,5.67787804,3734.3,3733.8,0.029]
[1753124347922,6.1402659,3734.3,3733.8,0.029]
[1753124348108,7.78038786,3734.3,3733.8,0.029]
[1753124348299,10.43737804,3734.3,3733.8,0.029]
[1753124348501,5.67787804,3734.3,3733.8,0.029]
[1753124348729,6.06793862,3734.3,3733.8,0.029]
[1753124348929,10.83343862,3734.3,3733.8,0.029]
[1753124349136,10.81655076,3734.3,3733.8,0.029]
[1753124349433,7.81655076,3734.3,3733.8,0.029]
[1753124349733,10.44737804,3734.3,3733.8,0.029]
[1753124349933,3.16431336,3734.3,3733.8,0.029]
[1753124350134,3.38973734,3734.3,3733.8,0.029]
[1753124350339,12.00283911,3734.3,3734.2,0.06606452]
[1753124350496,9.31307321,3734.3,3734.2,0.06606452]
[1753124350835,11.99095125,3734.3,3734.2,0.06606452]
[1753124351019,12.54095125,3734.3,3734.2,0.06606452]
[1753124352643,12.81994109,3734.3,3734.2,0.06606452]
[1753124352798,12.66351801,3734.3,3734.2,1e-08]
[1753124352998,3.22816492,3733.9,3733.8,0.029]
[1753124353200,6.91977655,3733.9,3733.8,0.029]
[1753124353401,11.67938869,3733.9,3733.8,0.029]
[1753124353597,6.67066492,3733.9,3733.8,0.029]
[1753124353822,11.02655278,3733.9,3733.8,0.029]
[1753124354007,11.00666492,3733.9,3733.8,0.029]
[1753124354226,11.00766492,3733.9,3733.8,0.029]
[1753124354814,6.67066492,3733.9,3733.8,0.029]
[1753124355028,11.02555278,3733.9,3733.8,0.029]
[1753124355323,8.3275,3733.9,3733.8,0.029]
[1753124355527,11.00466492,3733.9,3733.8,0.029]
[1753124355733,12.37293518,3733.9,3733.8,0.029]
[1753124355936,14.69238917,3733.6,3733.5,1e-08]
[1753124356136,19.47170277,3733.6,3733.5,1e-08]
[1753124356360,19.92980277,3733.6,3733.5,1e-08]
[1753124356569,16.43103994,3733.6,3733.5,1e-08]
[1753124356908,20.76903994,3733.6,3733.5,1e-08]
[1753124357408,5.67845185,3733.5,3733.4,0.001]
[1753124357612,11.29443971,3733.5,3733.4,0.001]
[1753124357929,11.27455185,3733.5,3733.4,0.001]
[1753124358102,11.65777558,3733.5,3733.4,0.001]
[1753124358441,6.93655185,3733.5,3733.4,0.001]
[1753124358642,12.15076091,3733.5,3733.4,0.001]
[1753124358807,16.62727638,3733.5,3733.4,0.001]
[1753124359010,19.62727638,3733.5,3733.4,0.001]
[1753124359509,0.93951547,3733.5,3733.4,0.001]
[1753124360309,6.61796732,3733.5,3733.4,0.001]
[1753124360510,3.93951547,3733.5,3733.4,0.001]
[1753124360711,7.16796732,3733.5,3733.4,0.001]
[1753124361146,4.48951547,3733.5,3733.4,0.001]
[1753124361347,0.93951547,3733.5,3733.4,0.8259]
[1753124361645,0.93951547,3733.5,3733.4,1.44539]
[1753124361810,0.93951547,3733.5,3733.4,4.15069882]
[1753124362011,0.22098463,3734.3,3733.4,4.15069882]
[1753124362012,0.20109677,3734.3,3733.4,4.15069882]
[1753124362349,0.13946769,3735.4,3734.2,3.50279873]
[1753124362531,0.13946769,3735.4,3734.3,0.02677878]
[1753124362737,0.01988786,3735.6,3734.4,0.78985775]
[1753124362939,0.01988786,3735.7,3735.1,2.67724988]
[1753124363244,0.01988786,3735.7,3735.2,1.2618]
[1753124363625,0.19892546,3735.9,3735.4,2.67706144]
[1753124363828,0.01988786,3736.3,3735.2,0.8249]
[1753124363829,0.01988786,3736.3,3735.5,3.1406739]
[1753124364021,0.20035094,3736.3,3735.6,2.67694613]
[1753124364227,0.01988786,3736.6,3735.7,0.46366874]
[1753124364423,7.02409046,3736.8,3735.8,2.67680282]
[1753124364716,0.01988786,3736.7,3735.7,3.11372326]
[1753124364920,0.01988786,3736.7,3735.8,0.02676802]
[1753124365129,2.67632395,3736.5,3735.8,2.70355464]
[1753124365314,3.0,3736.6,3735.8,2.70355751]
[1753124365658,11.64125745,3737.2,3735.8,2.70355751]
[1753124365659,0.69624431,3737.4,3736.0,0.8083]
[1753124365814,2.67575391,3737.3,3736.9,0.1336]
[1753124366014,2.67567352,3737.4,3737.0,0.4369]
[1753124366246,0.01988786,3737.3,3737.0,0.4369]
[1753124366418,2.69563882,3737.3,3737.0,0.4369]